[Event "Tsaghkadzor Open 2024"]
[Site "Tsaghkadzor"]
[Date "2024.10.01"]
[Round "2.1"]
[White "Baghdasaryan, Vahe"]
[Black "Karthik Venkataraman"]
[Result "0-1"]
[ECO "B22"]
[WhiteElo "2251"]
[BlackElo "2581"]
[Annotator "TA"]
[PlyCount "60"]
[EventDate "2024.09.13"]
[EventType "swiss"]
[EventCountry "ARM"]
[SourceTitle "playchess.com"]
[Source "ChessBase"]
[SourceQuality "1"]
[TimeControl "40/5400+30:1800+30"]

{[%evp 14,60,0,8,3,8,9,0,18,0,-5,-16,-18,-79,-79,-92,-91,-100,-92,-184,-186,-228,-145,-425,-426,-555,-387,-362,-363,-367,-360,-345,-344,-500,-364,-366,-267,-373,-338,-373,-450,-515,-515,-1133,-1133,-1304,-1168,-1718,-1702]} 1. e4 {[%emt 0:00:15][%cal Be2e4,Be4e5][%mdl 32]} c5 {[%emt 0:00:22]} 2. Nf3 {[%emt 0:00:10]} Nc6 {[%emt 0:00:14]} 3. c3 {[%emt 0:03:04]} Nf6 {[%emt 0:00:27]} 4. e5 {[%emt 0:00:07]} Nd5 {[%emt 0:00:03]} 5. d4 {[%emt 0:01:02]} cxd4 {[%emt 0:00:06]} 6. cxd4 {[%emt 0:00:04]} d6 {[%emt 0:00:06]} 7. Bc4 {[%emt 0:00:09]} dxe5 {[%emt 0:01:29]} 8. dxe5 {[%emt 0:01:18]} Be6 {[%emt 0:00:15][%cal Od5e3]} 9. O-O {[%emt 0:00:52]} g6 {[%emt 0:00:05]} 10. Qe2 {[%emt 0:00:41]} Bg7 {[%emt 0:05:21] The position is equal.} 11. Rd1 {[%emt 0:04:49]} Qa5 $1 {[%emt 0:00:28]} 12. Nbd2 {[%emt 0:06:13] Nb3 would now be deadly.} Nc7 {[%emt 0:07:35][%cal Rc6e5]} 13. b4 {[%emt 0:20:16]} Qxb4 $17 {[%emt 0:02:38] Black is more active.} 14. Ng5 {[%emt 0:07:47]} Bxc4 {[%emt 0:06:00]} (14... Bxe5 $6 15. Nxe6 Nxe6 (15... Bxa1 $2 16. Nxc7+ Kd7 17. Nd5 $18) 16. Rb1 $14) 15. Nxc4 {[%emt 0:01:27]} O-O {[%emt 0:00:10]} 16. Ba3 {[%emt 0:04:43] [#]} (16. a4 $17 b5 17. axb5 Qxb5 (17... Nxb5 18. Bd2 $17) 18. Nf3) 16... Qa4 $1 $19 {[%emt 0:01:16] And now ...b5 would win.} 17. Rac1 {[%emt 0:00:25]} h6 {[%emt 0:08:25]} 18. Rd7 $2 {[%emt 0:15:20][%mdl 8192]} (18. Ne4 $17 {was necessary.} Rfd8 (18... Bxe5 $2 19. Nc5 $18) 19. Nc5 Rxd1+ 20. Rxd1) 18... Nb5 {[%emt 0:02:54]} 19. Nxf7 {[%emt 0:14:34]} Rxf7 {[%emt 0:01:41][%cal Bf8f7,Bf7f5,Bf5e5][%mdl 32]} 20. Bc5 {[%emt 0:00:13]} Rd8 {[%emt 0:09:23]} 21. Nb2 {[%emt 0:02:14]} Qa5 {[%emt 0:11:47]} (21... Qxa2 22. Rxd8+ Nxd8 23. Qxb5 $17) 22. Nc4 {[%emt 0:02:58] [#]} Qa6 {[%emt 0:05:02]} ({Stronger than} 22... Nbd4 23. Bxd4 Qa4 (23... Nxd4 24. Rxd4 Qc7 25. Rxd8+ Qxd8 26. Rd1 $14) 24. Rxd8+ Nxd8 25. Be3 $11) 23. e6 {[%emt 0:02:39]} (23. Rxd8+ $142 Nxd8 24. Qd3) 23... Rf5 {[%emt 0:00:53]} 24. Ne3 {[%emt 0:02:01]} Re5 {[%emt 0:00:45]} 25. Bxe7 {[%emt 0:07:18]} Re8 {[%emt 0:00:10]} 26. Bf6 {[%emt 0:00:58]} Bxf6 {[%emt 0:03:03]} 27. Ng4 {[%emt 0:00:01] Black is clearly winning.} R8xe6 {[%emt 0:00:49]} (27... Rxe2 28. Nxf6+ Kh8 29. Rh7#) 28. Nxh6+ {[%emt 0:01:47]} (28. Nxe5 $142 Nbd4 (28... Rxe5 29. Qc4+ Kh8 30. Qf4 $15) (28... Bxe5 $2 29. Qf3 $19) 29. Qxa6 bxa6 30. Nxc6 Ne2+ (30... Nxc6 31. Kf1 $11) 31. Kf1 Nxc1 32. Rc7) 28... Kf8 {[%emt 0:00:01]} 29. Rf7+ {[%emt 0:00:55]} Ke8 {[%emt 0:00:01]} 30. Qd2 {[%emt 0:00:11]} Nbd4 {[%emt 0:00:52] White did not feel at home in the position after the opening.   Weighted Error Value: White=1.13/Black=0.28 (precise) .  Loses game:     	White=1     	---        Mistake:       	White=4     	---        Inaccurate:     	White=2     	Black=2      OK:         	White=4     	Black=7      Best:        	---       	Black=3      Strong:       	---       	Black=2} 0-1

[Event "Tsaghkadzor Open 2024"]
[Site "Tsaghkadzor"]
[Date "2024.10.01"]
[Round "2.2"]
[White "Sklokin, Sergey"]
[Black "Andriasian, Zaven"]
[Result "0-1"]
[ECO "B06"]
[WhiteElo "2249"]
[BlackElo "2558"]
[Annotator "TA"]
[PlyCount "94"]
[EventDate "2024.09.13"]
[EventType "swiss"]
[EventCountry "ARM"]
[SourceTitle "playchess.com"]
[Source "ChessBase"]
[SourceQuality "1"]
[TimeControl "40/5400+30:1800+30"]

{[%evp 10,94,50,9,22,0,7,0,0,-26,-26,-45,-22,-18,-19,-27,-26,-27,-4,-16,-11,-9,0,0,0,0,18,-10,-20,-39,-35,-75,-80,-122,-105,-218,-235,-277,-274,-274,-264,-280,-287,-290,-249,-264,-247,-329,-309,-318,-326,-312,-316,-337,-335,-336,-332,-418,-423,-728,-675,-675,-638,-643,-633,-599,-636,-631,-619,-923,-606,-597,-604,-604,-385,-385,-385,-506,-447,-459,-472,-555,-542,-726,-718,-656,-481]} 1. e4 {[%emt 1:31:00]} d6 {[%emt 1:31:00]} 2. d4 {[%emt 0:00:30]} g6 {[%emt 0:00:30]} 3. Nc3 {[%emt 0:00:30]} Bg7 {[%emt 0:00:30]} 4. Be3 {[%emt 0:00:30]} c6 {[%emt 0:00:30]} 5. Qd2 {[%emt 0:00:30]} b5 {[%emt 0:00:30][%cal Bb7b5,Bb5b4][%mdl 32]} 6. a4 {[%emt 0:00:30]} b4 {[%emt 0:00:30]} 7. Na2 {[%emt 0:00:30]} Nf6 {[%emt 0:00:30]} 8. f3 {[%emt 0:00:30]} a5 {[%emt 0:00:30] The position is equal.} 9. c3 {[%emt 0:00:30]} bxc3 {[%emt 0:00:30]} 10. bxc3 {[%emt 0:00:30]} Nbd7 {[%emt 0:00:30]} 11. Bd3 {[%emt 0:00:30]} Nb6 {[%emt 0:00:30]} 12. Qc2 {[%emt 0:00:30]} O-O {[%emt 0:00:30][%cal Oc6c5]} 13. Ne2 {[%emt 0:00:30]} Ba6 {[%emt 0:00:30]} 14. Bxa6 {[%emt 0:00:30]} Rxa6 {[%emt 0:00:30]} 15. c4 {[%emt 0:00:30]} c5 {[%emt 0:00:30]} 16. dxc5 {[%emt 0:00:30]} dxc5 {[%emt 0:00:30][%cal Of6g4]} 17. O-O {[%emt 0:00:30][%cal Oa1b1]} Nfd7 {[%emt 0:00:30]} 18. Rad1 {[%emt 0:00:30]} Qc8 {[%emt 0:00:30]} 19. Qb3 {[%emt 0:00:30]} Ne5 {[%emt 0:00:30]} 20. Rc1 {[%emt 0:00:30]} Rd8 {[%emt 0:00:30] Black converts the advantage convincingly.} 21. Qb5 {[%emt 0:00:30][%cal Of1d1]} Nbd7 {[%emt 0:00:30]} 22. Nf4 {[%emt 0:00:30]} (22. Rc2 $17 {might work better.}) 22... e6 $19 {[%emt 0:00:30]} 23. Rc2 {[%emt 0:00:30]} Nc6 {[%emt 0:00:30] [#] Hoping for ...Rb6.} 24. Qb1 {[%emt 0:00:30]} Rb6 {[%emt 0:00:30]} 25. Qe1 {[%emt 0:00:30]} Rb3 {[%emt 0:00:30][%cal Ob3e3] Threatens to win with ...Rxe3!} 26. Kh1 {[%emt 0:00:30]} Qa6 {[%emt 0:00:30]} 27. Nc1 {[%emt 0:00:30]} Rb4 {[%emt 0:00:30]} 28. Ncd3 {[%emt 0:00:30]} Rxc4 {[%emt 0:00:30]} ({Don't do} 28... Rxa4 29. Nxc5 Nxc5 (29... Rxc4 $2 {too greedy.} 30. Nxa6 Rxc2 31. Qb1 $18) 30. Bxc5) 29. Rxc4 {[%emt 0:00:30]} Qxc4 {[%emt 0:00:30]} 30. Qc1 {[%emt 0:00:30]} Qxa4 {[%emt 0:00:30]} 31. Nxc5 {[%emt 0:00:30]} Nxc5 {[%emt 0:00:30]} 32. Qxc5 {[%emt 0:00:30]} Rd1 {[%emt 0:00:30]} 33. Kg1 {[%emt 0:00:30]} Bf8 {[%emt 0:00:30]} 34. Qb6 {[%emt 0:00:30]} (34. Qc3 $142) 34... Rxf1+ {[%emt 0:00:30]} 35. Kxf1 {[%emt 0:00:30]} Qc4+ {[%emt 0:00:30]} 36. Ne2 {[%emt 0:00:30]} a4 {[%emt 0:00:30] [#] White must now prevent ...a3.} 37. Qb7 {[%emt 0:00:30]} a3 {[%emt 0:00:30]} 38. Qa8 {[%emt 0:00:30]} a2 {[%emt 0:00:30]} 39. Kf2 {[%emt 0:00:30]} Nb4 {[%emt 0:00:30]} 40. Nc1 {[%emt 0:00:30]} Qc3 {[%emt 0:00:30]} 41. Nxa2 {[%emt 0:30:30]} Qb2+ {[%emt 0:30:30]} 42. Kg3 {[%emt 0:00:30][%cal Oe3h6] Bh6! is the strong threat.} Qxa2 {[%emt 0:00:30]} 43. Qb8 {[%emt 0:00:30] White wants to mate with Bh6.} Qc4 {[%emt 0:00:30] Black is clearly winning.} 44. Bh6 {[%emt 0:00:30]} Qc5 {[%emt 0:00:30]} 45. Qa8 {[%emt 0:00:30]} Nd3 {[%emt 0:00:30] ...Qd6+ would now be deadly.} 46. h4 {[%emt 0:00:30]} Qd6+ {[%emt 0:00:30]} 47. f4 {[%emt 0:00:30]} Qa3 {[%emt 0:00:30] Weighted Error Value: White=0.47/Black=0.29 (precise) .  Mistake:       	White=2     	---        Inaccurate:     	White=7     	Black=1      OK:         	White=7     	Black=18     Best:        	White=2     	Black=1} 0-1

[Event "Tsaghkadzor Open 2024"]
[Site "Tsaghkadzor"]
[Date "2024.10.01"]
[Round "2.3"]
[White "Yeritsyan, Hayk"]
[Black "Lobanov, Sergei"]
[Result "1/2-1/2"]
[ECO "B31"]
[WhiteElo "2229"]
[BlackElo "2506"]
[Annotator "RC"]
[PlyCount "67"]
[EventDate "2024.09.13"]
[EventType "swiss"]
[EventCountry "ARM"]
[SourceTitle "playchess.com"]
[Source "ChessBase"]
[SourceQuality "1"]
[TimeControl "40/5400+30:1800+30"]

1. e4 {[%emt 0:00:17]} c5 {[%emt 0:00:07]} 2. Nf3 {[%emt 0:00:18]} Nc6 {[%emt 0:00:07]} 3. Bb5 {[%emt 0:00:17]} g6 {[%emt 0:01:31]} 4. Bxc6 {[%emt 0:00:15]} bxc6 {[%emt 0:00:20]} 5. O-O {[%emt 0:03:29]} Bg7 {[%emt 0:00:26]} 6. Re1 {[%emt 0:00:36]} Nh6 {[%emt 0:04:00]} 7. c3 {[%emt 0:03:01]} f6 {[%emt 0:01:18]} 8. d4 {[%emt 0:03:26]} cxd4 {[%emt 0:03:35]} 9. cxd4 {[%emt 0:00:23]} d6 {[%emt 0:01:57]} 10. Nc3 {[%emt 0:03:28]} Nf7 {[%emt 0:00:29]} 11. h3 {[%emt 0:03:06]} O-O {[%emt 0:00:29]} 12. b3 {[%emt 0:04:46]} Bd7 {[%emt 0:09:23]} 13. Bb2 {[%emt 0:01:23]} e5 {[%emt 0:06:58]} 14. Qd2 {[%emt 0:08:56]} Qe7 {[%emt 0:04:40]} 15. Rad1 {[%emt 0:01:10]} Rad8 {[%emt 0:02:01]} 16. Ba3 {[%emt 0:05:35]} Bc8 {[%emt 0:04:34]} 17. Qe2 {[%emt 0:01:50]} Rfe8 {[%emt 0:06:47]} 18. Qc4 {[%emt 0:04:21]} Be6 {[%emt 0:02:55]} 19. Qa6 {[%emt 0:04:37]} Qc7 {[%emt 0:00:19]} 20. Rc1 {[%emt 0:05:53]} Qb6 {[%emt 0:03:11]} 21. Qa4 {[%emt 0:07:13]} Bc8 {[%emt 0:12:04]} 22. Bb4 {[%emt 0:06:45]} Qa6 {[%emt 0:06:20]} 23. Ba5 {[%emt 0:01:08]} Rd7 {[%emt 0:00:12]} 24. b4 {[%emt 0:01:02]} Rb7 {[%emt 0:07:34]} 25. d5 {[%emt 0:02:39]} Bd7 {[%emt 0:00:02]} 26. dxc6 {[%emt 0:00:47]} Bxc6 {[%emt 0:00:05]} 27. Qb3 {[%emt 0:00:23]} Bh6 {[%emt 0:11:42]} 28. Rc2 {[%emt 0:00:49]} Kg7 {[%emt 0:00:07]} 29. Nd5 {[%emt 0:02:28]} Rc8 {[%emt 0:00:26]} 30. h4 {[%emt 0:08:42]} Qb5 {[%emt 0:08:18]} 31. Nc3 {[%emt 0:01:58]} Qa6 {[%emt 0:00:08]} 32. Nd5 {[%emt 0:00:16]} Qb5 {[%emt 0:00:11]} 33. Nc3 {[%emt 0:03:17]} Qa6 {[%emt 0:00:04]} 34. Nd5 {[%emt 0:00:22]} 1/2-1/2

[Event "Tsaghkadzor Open 2024"]
[Site "Tsaghkadzor"]
[Date "2024.10.01"]
[Round "2.4"]
[White "Davtyan, Artur"]
[Black "Alaverdyan, Gevorg"]
[Result "1/2-1/2"]
[ECO "E11"]
[WhiteElo "2467"]
[BlackElo "2242"]
[Annotator "TA"]
[PlyCount "57"]
[EventDate "2024.09.13"]
[EventType "swiss"]
[EventCountry "ARM"]
[SourceTitle "playchess.com"]
[Source "ChessBase"]
[SourceQuality "1"]
[TimeControl "40/5400+30:1800+30"]

{[%evp 16,57,30,37,37,27,27,32,73,0,8,0,59,37,50,-39,-15,-14,-25,-31,-25,-10,-9,-97,-72,-72,-68,-78,0,-14,-25,-28,-39,-50,-18,-19,-27,-26,-23,-23,0,0,0,-13]} 1. d4 {[%emt 0:18:25]} Nf6 {[%emt 0:01:00]} 2. c4 {[%emt 0:00:10]} e6 {[%emt 0:00:48]} 3. Nf3 {[%emt 0:00:52]} Bb4+ {[%emt 0:01:57]} 4. Bd2 {[%emt 0:00:13]} c5 {[%emt 0:01:51]} 5. Bxb4 {[%emt 0:05:27]} cxb4 {[%emt 0:00:01]} 6. Nbd2 {[%emt 0:01:35]} O-O {[%emt 0:00:15]} 7. e3 {[%emt 0:00:20]} d6 {[%emt 0:01:08]} 8. Be2 {[%emt 0:00:26]} Nc6 {[%emt 0:00:05]} 9. O-O {[%emt 0:00:06]} e5 {[%emt 0:00:04] E11: Bogo-Indisch.} 10. a3 {[%emt 0:31:52] OK} bxa3 {[%emt 0:06:01]} 11. Rxa3 {[%emt 0:36:34]} Bf5 $146 {[%emt 0:00:09] Onnauwkeurig. Wit staat iets beter.} ({Predecessor:} 11... Re8 12. Nb3 Bg4 13. h3 Bh5 14. Re1 Qb6 15. d5 Nb4 16. Nh4 Bg6 17. Nxg6 hxg6 {1-0 Kaufman,R (2261)-Macieja,B (2617) Northern California op 2012 (4)}) 12. Qa4 {[%emt 0:00:00] Fout (0.7)} (12. Qb3 $16) 12... a5 $11 {[%emt 0:03:57] OK} 13. Rc1 {[%emt 0:00:00]} {Zwart zou moeten spelen} Qe7 {[%emt 0:18:31] Fout (0.6)} (13... exd4 $11 14. exd4 Nb4) 14. c5 $1 $14 {[%emt 0:00:00] Sterk} dxc5 {[%emt 0:00:13] OK} {Wit zou moeten spelen} 15. Rxc5 {[%emt 0:00:00] Fout (0.9)} (15. dxe5 $14 Nxe5 16. Nxe5 Qxe5 17. Nc4) 15... Bd7 $1 $15 {[%emt 0:11:10][%cal Oc6d4] Sterk} 16. Bb5 {[%emt 0:00:00] OK} ({Veel zwakker is} 16. Nxe5 Nxe5 17. Rxe5 Qxe5 18. dxe5 Bxa4 19. Rxa4 Nd7 $17) 16... exd4 {[%emt 0:00:28] OK} 17. exd4 {[%emt 0:00:00]} Rfd8 {[%emt 0:00:29][%cal Oc6d4] ...Nxd4! zou dodelijk zijn. OK} 18. Re3 {[%emt 0:00:00]} Qf8 {[%emt 0:00:01][%cal Oc6d4] Hoopt vervolgens op ...Nxd4! OK} 19. Rec3 {[%emt 0:00:00] [#] blijft gelijk. Fout (0.9)} (19. Ne4 $11) 19... Be8 $1 $17 {[%emt 0:01:07] Sterk} 20. Rc1 {[%emt 0:00:00] OK} Nd5 {[%emt 0:01:50] OK} 21. Qa3 {[%emt 0:00:00] OK} {Zwart zou moeten overwegen,} Ndb4 {[%emt 0:06:40] Fout (0.8)} (21... Nf4 $17) 22. Bxc6 {[%emt 0:00:00]} Nxc6 {[%emt 0:08:38]} 23. d5 {[%emt 0:00:00] OK} Nb4 {[%emt 0:00:05] Dreigt te winnen met ...b6.} 24. Rxa5 {[%emt 0:00:00] Beste (Gemakkelijk)} Rxa5 {[%emt 0:00:03] Onnauwkeurig} 25. Qxa5 {[%emt 0:00:00]} Rxd5 {[%emt 0:00:03] OK} 26. Qb6 {[%emt 0:00:00] OK} Bc6 {[%emt 0:06:07] OK} 27. Nd4 {[%emt 0:00:00] OK} Qd8 {[%emt 0:07:14]} 28. Qxd8+ {[%emt 0:00:00] OK} Rxd8 {[%emt 0:00:02]} 29. Nxc6 {[%emt 0:00:00] Blunder waarde: Wit=0.22 (precies) /Zwart=0.11 (erg precies) . OK.  Fout:        	Wit=3      	Zwart=2      Onnauwkeurig:    	---       	Zwart=2      OK:         	Wit=9      	Zwart=8      Beste:        	Wit=1      	---        Sterk:        	Wit=1      	Zwart=2} 1/2-1/2

[Event "Tsaghkadzor Open 2024"]
[Site "Tsaghkadzor"]
[Date "2024.10.01"]
[Round "2.5"]
[White "Ghayourifar, Amir"]
[Black "Hayrapetyan, Hovik"]
[Result "1/2-1/2"]
[ECO "B51"]
[WhiteElo "2206"]
[BlackElo "2464"]
[Annotator "TA"]
[PlyCount "120"]
[EventDate "2024.09.13"]
[EventType "swiss"]
[EventCountry "ARM"]
[SourceTitle "playchess.com"]
[Source "ChessBase"]
[SourceQuality "1"]
[TimeControl "40/5400+30:1800+30"]

{[%evp 16,120,-5,0,0,-12,-10,-7,-5,-16,-18,-10,-21,-22,0,-2,0,-24,18,8,3,11,43,36,25,0,0,0,0,-3,-14,-7,-7,-10,0,-3,0,0,0,0,-4,-4,0,-21,-18,-28,-30,-31,-37,-30,-29,-30,-31,-31,-31,-31,-19,-33,-35,-34,-36,-37,-29,-56,-27,-34,-30,-28,-27,-28,-15,-15,0,-25,0,-27,-16,-16,-5,-32,-16,-10,0,-35,-35,-40,-43,-46,-35,-63,-62,-60,-60,-61,-40,-40,-5,-9,0,0,30,41,30,8,8,2,2]} 1. e4 {[%emt 1:31:00]} c5 {[%emt 1:31:00]} 2. Nf3 {[%emt 0:00:30]} d6 {[%emt 0:00:30]} 3. Bb5+ {[%emt 0:00:30]} Nd7 {[%emt 0:00:30]} 4. a4 {[%emt 0:00:30]} Ngf6 {[%emt 0:00:30]} 5. Nc3 {[%emt 0:00:30]} a6 {[%emt 0:00:30]} 6. Be2 {[%emt 0:00:30] B51: Sicilian: Moscow Variation (3 Bb5+) without 3...Bd7.} g6 {[%emt 0:00:30]} 7. d4 {[%emt 0:00:30]} cxd4 {[%emt 0:00:30]} 8. Qxd4 {[%emt 0:00:30]} Bg7 {[%emt 0:00:30]} 9. O-O {[%emt 0:00:30]} O-O {[%emt 0:00:30]} 10. a5 {[%emt 0:00:30]} b5 {[%emt 0:00:30]} 11. axb6 {[%emt 0:00:30]} Bb7 12. Qb4 {[%emt 0:00:30]} (12. Be3 Nd5 13. Qd2 Nxe3 (13... N5xb6 14. Bh6 $11) 14. Qxe3 Qxb6 $16 (14... Nxb6 15. Ra3 $15)) 12... Qxb6 {[%emt 0:01:00]} 13. Qxb6 {[%emt 0:00:30]} Nxb6 {[%emt 0:00:30]} 14. Be3 {[%emt 0:00:30]} Nfd7 $146 {[%emt 0:00:30]} ({Predecessor:} 14... Nbd7 15. Nd2 d5 16. exd5 Nxd5 17. Nxd5 Bxd5 18. Ra5 e6 19. b3 Rfc8 20. Nc4 Bc3 {½-½ Tropp,L (2123)-Vrablik,M (2006) SVK-chT1E 1920 2019 (7.7)}) 15. Nd2 {[%emt 0:00:30]} Rfc8 {[%emt 0:00:30]} 16. Ra3 {[%emt 0:00:30]} d5 {[%emt 0:00:30]} 17. Bxb6 {[%emt 0:00:30]} Nxb6 {[%emt 0:00:30]} 18. Rb3 {[%emt 0:00:30]} Bd4 {[%emt 0:00:30]} 19. exd5 {[%emt 0:00:30]} a5 {[%emt 0:00:30]} 20. Nde4 {[%emt 0:00:30]} Bxd5 {[%emt 0:00:30]} 21. Nxd5 {[%emt 0:00:30]} Nxd5 {[%emt 0:00:30]} 22. c3 {[%emt 0:00:30]} Bg7 {[%emt 0:00:30]} 23. Ra1 {[%emt 0:00:30]} a4 {[%emt 0:00:30]} 24. Rb5 {[%emt 0:00:30]} e6 {[%emt 0:00:30]} 25. c4 {[%emt 0:00:30]} Ne7 {[%emt 0:00:30]} 26. Rb4 {[%emt 0:00:30]} Nc6 {[%emt 0:00:30]} 27. Rbxa4 {[%emt 0:00:30]} Rxa4 {[%emt 0:00:30]} 28. Rxa4 {[%emt 0:00:30]} Bxb2 {[%emt 0:00:30]} 29. Ra2 {[%emt 0:00:30]} Be5 {[%emt 0:00:30]} 30. g3 {[%emt 0:00:30]} Nd4 {[%emt 0:00:30]} 31. Bf1 {[%emt 0:00:30]} f5 32. Nd2 {[%emt 0:00:30]} Rc7 {[%emt 0:01:00]} 33. Kg2 {[%emt 0:00:30]} Bf6 {[%emt 0:00:30]} 34. f4 {[%emt 0:00:30]} Kf7 {[%emt 0:00:30]} 35. Nf3 {[%emt 0:00:30]} Nb3 {[%emt 0:00:30]} 36. Nd2 {[%emt 0:00:30]} Nc5 {[%emt 0:00:30]} 37. Nf3 {[%emt 0:00:30]} h6 {[%emt 0:00:30]} 38. h4 {[%emt 0:00:30]} Rb7 {[%emt 0:00:30]} 39. Nd2 {[%emt 0:00:30]} Bc3 {[%emt 0:00:30]} 40. Nf3 {[%emt 0:00:30]} Kf6 {[%emt 0:00:30]} 41. Be2 {[%emt 0:30:30]} Rb6 {[%emt 0:30:30]} 42. Kh3 {[%emt 0:00:30]} Ne4 {[%emt 0:00:30]} 43. Bd3 {[%emt 0:00:30]} Nc5 {[%emt 0:00:30]} 44. Be2 {[%emt 0:00:30]} Rb7 {[%emt 0:00:30]} 45. Kg2 {[%emt 0:00:30]} Rd7 {[%emt 0:00:30]} 46. Rc2 {[%emt 0:00:30]} Ne4 {[%emt 0:00:30]} 47. Ra2 {[%emt 0:00:30]} Rd6 {[%emt 0:00:30]} 48. Rc2 {[%emt 0:00:30]} Rd7 {[%emt 0:00:30]} 49. Ra2 {[%emt 0:00:30]} Ke7 {[%emt 0:00:30]} 50. Rc2 {[%emt 0:00:30]} Bf6 {[%emt 0:00:30]} 51. Ne1 {[%emt 0:00:30]} Nc5 {[%emt 0:00:30]} 52. Nf3 {[%emt 0:00:30]} Ra7 {[%emt 0:00:30]} 53. Nd2 {[%emt 0:00:30]} Ra3 {[%emt 0:00:30]} 54. Nf3 {[%emt 0:00:30]} Ne4 {[%emt 0:00:30]} 55. c5 {[%emt 0:00:30]} Nc3 {[%emt 0:00:30]} 56. c6 {[%emt 0:00:30]} Kd6 {[%emt 0:00:30]} 57. Bc4 {[%emt 0:00:30]} Ra5 {[%emt 0:00:30]} 58. Ne5 {[%emt 0:00:30]} Ne4 {[%emt 0:00:30]} 59. Bd3 {[%emt 0:00:30]} Kc7 $1 {[%emt 0:00:30]} 60. Bxe4 {[%emt 0:00:30]} Bxe5 {[%emt 0:00:30]} 1/2-1/2

[Event "Tsaghkadzor Open 2024"]
[Site "Tsaghkadzor"]
[Date "2024.10.01"]
[Round "2.6"]
[White "Goganov, Aleksey"]
[Black "Torosyan, Volodya"]
[Result "*"]
[ECO "E32"]
[WhiteElo "2463"]
[BlackElo "2187"]
[Annotator "TA"]
[PlyCount "33"]
[EventDate "2024.09.13"]
[EventType "swiss"]
[EventCountry "ARM"]
[SourceTitle "playchess.com"]
[Source "ChessBase"]
[SourceQuality "1"]
[TimeControl "40/5400+30:1800+30"]

{[%evp 21,33,11,22,36,80,45,75,106,118,79,108,88,96,35]} 1. d4 {[%emt 0:00:04]} Nf6 {[%emt 0:00:06]} 2. c4 {[%emt 0:00:05]} e6 {[%emt 0:00:04]} 3. Nc3 {[%emt 0:00:04]} Bb4 {[%emt 0:00:06]} 4. Qc2 {[%emt 0:01:23]} d6 {[%emt 0:03:45]} 5. a3 {[%emt 0:01:09]} Bxc3+ {[%emt 0:00:08]} 6. Qxc3 {[%emt 0:00:05]} O-O {[%emt 0:00:47]} 7. Nf3 {[%emt 0:00:31]} b6 {[%emt 0:01:47]} 8. g3 {[%emt 0:01:02]} Bb7 {[%emt 0:07:41]} 9. Bg2 {[%emt 0:02:23]} Nbd7 {[%emt 0:01:37]} 10. O-O {[%emt 0:01:06]} c5 {[%emt 0:01:39]} 11. b4 {[%emt 0:09:06][%cal Bb2b4,Bb4b5][%mdl 32] EV=16.18. Goes to b5 (dbg))} Rc8 {[%emt 0:04:52]} 12. Bb2 {[%emt 0:06:13]} Qe7 {[%emt 0:12:34] Onnauwkeurig} 13. Rfd1 {[%emt 0:04:47] Onnauwkeurig} d5 {[%emt 0:07:32] Onnauwkeurig} 14. dxc5 {[%emt 0:09:03] OK. Wit staat beter.} bxc5 {[%emt 0:00:17]} 15. cxd5 {[%emt 0:01:09] Wit is actiever. OK} Bxd5 {[%emt 0:00:19] [#] Onnauwkeurig} 16. b5 $1 {[%emt 0:05:53] Sterk} Nb6 {[%emt 0:04:18] [#] Beste} {Wit kan overwegen} 17. a4 {[%emt 0:02:23] Blunder waarde: Wit=0.08 (foutloos) /Zwart=0.20 (precies) . Fout (0.6).  Fout:        	Wit=1      	---        Onnauwkeurig:    	Wit=1      	Zwart=3      OK:         	Wit=2      	---        Beste:        	---       	Zwart=1      Sterk:        	Wit=1      	---} (17. Qc2 $1 $16) *